fUSD/lending_fUSD_20251024
["ID","MTS","AMOUNT","RATE_DAILY","PERIOD"]
[392231200,1761271842276,-500.0,0.00041917,30]
[392231201,1761271842286,-1095.76,0.00041917,30]
[392231202,1761271842298,-752.06,0.00041917,30]
[392231203,1761271842309,-500.0,0.00041917,30]
[392231204,1761271842320,-1008.3,0.00041917,30]
[392231205,1761271842331,-896.07,0.00041917,30]
[392231206,1761271842343,-526.38,0.00041917,30]
[392231207,1761271842354,-500.0,0.00041917,30]
[392231208,1761271842371,-500.0,0.00041917,30]
[392231209,1761271842382,-500.0,0.00041917,30]
[392231210,1761271842393,-500.0,0.00041917,30]
[392231211,1761271842404,-500.0,0.00041917,30]
[392231212,1761271842415,-206.00353654,0.00041917,30]
[392231213,1761271842425,-500.0,0.00041917,30]
[392231214,1761271842436,-500.0,0.00041917,30]
[392231215,1761271842447,-643.72,0.00041917,30]
[392231216,1761271842458,-500.0,0.00041917,30]
[392231217,1761271842469,-506.348826,0.00041917,30]
[392231218,1761271842479,-1180.71,0.00041917,30]
[392231219,1761271842490,-500.0,0.00041917,30]
[392231220,1761271842502,-500.0,0.00041917,30]
[392231221,1761271842513,-1096.38,0.00041917,30]
[392231222,1761271842523,-500.0,0.00041917,30]
[392231223,1761271842535,-715.37,0.00041917,30]
[392231224,1761271842545,-500.0,0.00041917,30]
[392231225,1761271842556,-855.05,0.00041917,30]
[392231226,1761271842567,-500.0,0.00041917,30]
[392231227,1761271842579,-1905.27,0.00041917,30]
[392231228,1761271842590,-500.0,0.00041917,30]
[392231229,1761271842601,-500.0,0.00041917,30]
[392231230,1761271842612,-514.64,0.00041917,30]
[392231231,1761271842624,-500.0,0.00041917,30]
[392231232,1761271842635,-1125.38,0.00041917,30]
[392231233,1761271842645,-500.0,0.00041917,30]
[392231234,1761271842656,-500.0,0.00041917,30]
[392231235,1761271842667,-931.76,0.00041917,30]
[392231236,1761271842679,-542.54,0.00041917,30]
[392231237,1761271842690,-500.0,0.00041917,30]
[392231238,1761271842700,-937.86,0.00041917,30]
[392231239,1761271842710,-1385.84,0.00041917,30]
[392231240,1761271842721,-939.34,0.00041917,30]
[392231241,1761271842732,-500.0,0.00041917,30]
[392231242,1761271842743,-500.0,0.00041917,30]
[392231243,1761271842754,-1058.11,0.00041917,30]
[392231244,1761271842764,-500.0,0.00041917,30]
[392231245,1761271842775,-925.75,0.00041917,30]
[392231246,1761271842786,-500.0,0.00041917,30]
[392231247,1761271842797,-500.0,0.00041917,30]
[392231248,1761271842808,-500.0,0.00041917,30]
[392231249,1761271842820,-500.0,0.00041917,30]
[392231250,1761271842831,-858.12,0.00041917,30]
[392231251,1761271842842,-500.0,0.00041917,30]
[392231252,1761271842853,-501.43,0.00041917,30]
[392231253,1761271842863,-581.09475907,0.00041917,30]
[392231254,1761271842874,-593.15,0.00041917,30]
[392231255,1761271842885,-749.63,0.00041917,30]
[392231256,1761271842896,-500.0,0.00041917,30]
[392231257,1761271842907,-500.0,0.00041917,30]
[392231258,1761271842918,-699.35,0.00041917,30]
[392231259,1761271842928,-500.0,0.00041917,30]
[392231260,1761271842939,-687.22,0.00041917,30]
[392231261,1761271842950,-500.0,0.00041917,30]
[392231262,1761271842961,-500.0,0.00041917,30]
[392231263,1761271842971,-1346.88,0.00041917,30]
[392231264,1761271842982,-926.82,0.00041917,30]
[392231265,1761271842992,-614.81,0.00041917,30]
[392231266,1761271843003,-500.0,0.00041917,30]
[392231267,1761271843014,-500.0,0.00041917,30]
[392231268,1761271843024,-500.0,0.00041917,30]
[392231269,1761271843035,-632.5,0.00041917,30]
[392231270,1761271843045,-500.0,0.00041917,30]
[392231271,1761271843057,-500.0,0.00041917,30]
[392231272,1761271843068,-500.0,0.00041917,30]
[392231273,1761271843078,-868.42,0.00041917,30]
[392231274,1761271843089,-500.0,0.00041917,30]
[392231275,1761271843099,-987.29,0.00041917,30]
[392231276,1761271843110,-500.0,0.00041917,30]
[392231277,1761271843121,-295.55933994,0.00041917,30]
[392231278,1761271843131,-500.0,0.00041917,30]
[392231279,1761271843142,-500.0,0.00041917,30]
[392231280,1761271843153,-973.02,0.00041917,30]
[392231281,1761271843163,-1130.39,0.00041917,30]
[392231282,1761271843174,-483.6108565,0.00041917,30]
[392231283,1761271843184,-630.06,0.00041917,30]
[392231284,1761271843195,-500.0,0.00041917,30]
[392231285,1761271843207,-500.0,0.00041917,30]
[392231286,1761271843219,-500.0,0.00041917,30]
[392231287,1761271843229,-500.0,0.00041917,30]
[392231288,1761271843239,-546.92,0.00041917,30]
[392231290,1761271843249,-1145.04,0.00041917,30]
[392231291,1761271843260,-500.0,0.00041917,30]
[392231292,1761271843270,-500.0,0.00041917,30]
[392231293,1761271843280,-500.0,0.00041917,30]
[392231294,1761271843290,-500.0,0.00041917,30]
[392231295,1761271843300,-512.3,0.00041917,30]
[392231296,1761271843311,-500.0,0.00041917,30]
[392231297,1761271843321,-500.0,0.00041917,30]
[392231298,1761271843332,-500.0,0.00041917,30]
[392231299,1761271843342,-926.49,0.00041917,30]
[392231300,1761271843353,-655.27,0.00041917,30]
[392231301,1761271843363,-1354.98,0.00041917,30]
[392231302,1761271843374,-500.0,0.00041917,30]
[392231303,1761271843384,-500.0,0.00041917,30]
[392231304,1761271843395,-500.0,0.00041917,30]
[392231305,1761271843405,-500.0,0.00041917,30]
[392231306,1761271843416,-12768.4906784,0.00041941,3]
[392231307,1761271843427,-500.0,0.00041951,30]
[392231308,1761271843437,-500.0,0.00041951,30]
[392231309,1761271843448,-500.0,0.00041951,30]
[392231310,1761271843458,-500.0,0.00041951,30]
[392231311,1761271843469,-500.0,0.00041951,30]
[392231312,1761271843480,-500.0,0.00041951,30]
[392231313,1761271843490,-500.0,0.00041951,30]
[392231314,1761271843500,-500.0,0.00041951,30]
[392231315,1761271843513,-615.09,0.00041951,30]
[392231316,1761271843528,-500.0,0.00041951,30]
[392231317,1761271843539,-1023.95,0.00041951,30]
[392231318,1761271843549,-500.0,0.00041951,30]
[392231319,1761271843560,-273.39658026,0.00041951,30]
[392231320,1761271843571,-500.0,0.00041951,30]
[392231321,1761271843582,-881.6,0.00041951,30]
[392231322,1761271843594,-500.0,0.00041951,30]
[392231323,1761271843606,-500.0,0.00041951,30]
[392231324,1761271843618,-500.0,0.00041951,30]
[392231325,1761271843630,-1227.22,0.00041951,30]
[392231326,1761271843642,-300.0,0.00041951,120]
[392231327,1761271843652,-300.0,0.00041951,120]
[392231328,1761271843664,-438.00546,0.00041951,120]
[392231329,1761271843675,-607.68,0.00041951,30]
[392231330,1761271843688,-677.08,0.00041951,30]
[392231331,1761271843704,-500.0,0.00041951,30]
[392231332,1761271843715,-698.12,0.00041951,30]
[392231333,1761271843726,-500.0,0.00041951,30]
[392231334,1761271843737,-500.0,0.00041951,30]
[392231335,1761271843748,-500.0,0.00041951,30]
[392231336,1761271843760,-634.59,0.00041951,30]
[392231337,1761271843771,-500.0,0.00041951,30]
[392231338,1761271843783,-704.5,0.00041951,30]
[392231339,1761271843794,-613.78,0.00041951,30]
[392231340,1761271843805,-688.2,0.00041951,30]
[392231341,1761271843816,-591.54,0.00041951,30]
[392231342,1761271843827,-1164.66,0.00041951,30]
[392231343,1761271843838,-500.0,0.00041951,30]
[392231344,1761271843849,-547.60307452,0.00041951,30]
[392231345,1761271843861,-575.91716055,0.00041952,120]
[392231346,1761271843872,-500.0,0.00041952,30]
[392231347,1761271843884,-500.0,0.00041952,30]
[392231348,1761271843896,-500.0,0.00041952,30]
[392231349,1761271843907,-500.0,0.00041952,30]
[392231350,1761271843919,-200.0,0.00042007,2]
[392231351,1761271843931,-1332.18944899,0.0004203,15]
[392231352,1761271843942,-204.81801665,0.00042125,18]
[392231353,1761271843958,-163.25887169,0.00042125,16]
[392231354,1761271843975,-226.83201083,0.00042162,15]
[392231355,1761271843986,-6958.32459816,0.00042181,3]
[392231356,1761271845294,-44115.63811564,0.00042181,3]
[392231357,1761271845319,-5184.46294238,0.00042181,3]
[392231358,1761271845336,-840.02,0.0004219,30]
[392231359,1761271845345,-500.0,0.0004219,30]
[392231360,1761271845354,-500.0,0.0004219,30]
[392231361,1761271845364,-548.7,0.0004219,30]
[392231362,1761271845373,-500.0,0.0004219,30]
[392231363,1761271845382,-500.0,0.0004219,30]
[392231364,1761271845391,-500.0,0.0004219,30]
[392231365,1761271845400,-500.0,0.0004219,30]
[392231366,1761271845409,-500.0,0.0004219,30]
[392231367,1761271845419,-500.0,0.0004219,30]
[392231368,1761271845427,-500.0,0.0004219,30]
[392231369,1761271845437,-500.0,0.0004219,30]
[392231370,1761271845446,-500.0,0.0004219,30]
[392231371,1761271845455,-500.0,0.0004219,30]
[392231372,1761271845464,-500.0,0.0004219,30]
[392231373,1761271845473,-500.0,0.0004219,30]
[392231374,1761271845482,-551.17403243,0.0004219,30]
[392231375,1761271845491,-698.27,0.0004219,30]
[392231376,1761271845500,-500.0,0.0004219,30]
[392231377,1761271845509,-500.0,0.0004219,30]
[392231378,1761271845518,-200.35711358,0.0004219,30]
[392231379,1761271845527,-500.0,0.0004219,30]
[392231380,1761271845537,-500.0,0.0004219,30]
[392231381,1761271845546,-500.0,0.0004219,30]
[392231382,1761271845555,-500.0,0.0004219,30]
[392231383,1761271845564,-998.06,0.0004219,30]
[392231384,1761271845573,-500.0,0.0004219,30]
[392231385,1761271845582,-621.69,0.0004219,30]
[392231386,1761271845591,-500.0,0.0004219,30]
[392231387,1761271845601,-366.81450712,0.0004219,30]
[392231388,1761271845610,-500.0,0.0004219,30]
[392231389,1761271845619,-500.0,0.0004219,30]
[392231390,1761271845628,-500.0,0.0004219,30]
[392231391,1761271845637,-500.0,0.0004219,30]
[392231392,1761271845646,-500.0,0.0004219,30]
[392231393,1761271845658,-500.0,0.0004219,30]
[392231394,1761271845667,-500.0,0.0004219,30]
[392231395,1761271845676,-514.48,0.0004219,30]
[392231396,1761271845685,-500.0,0.0004219,30]
[392231397,1761271845696,-930.49,0.0004219,30]
[392231398,1761271845706,-828.93,0.0004219,30]
[392231399,1761271845715,-500.0,0.0004219,30]
[392231400,1761271845724,-500.0,0.0004219,30]
[392231401,1761271845734,-967.18,0.0004219,30]
[392231402,1761271845743,-500.0,0.0004219,2]
[392231403,1761271845752,-500.0,0.0004219,30]
[392231404,1761271845761,-500.0,0.0004219,30]
[392231405,1761271845770,-500.0,0.0004219,30]
[392231406,1761271845779,-500.0,0.0004219,30]
[392231407,1761271845788,-1210.29,0.0004219,30]
[392231408,1761271845797,-1168.93,0.0004219,30]
[392231409,1761271845806,-500.0,0.0004219,30]
[392231410,1761271845816,-514.84,0.00042191,30]
[392231411,1761271845825,-549.08,0.00042191,30]
[392231412,1761271845834,-500.0,0.00042191,30]
[392231413,1761271845843,-500.0,0.00042191,30]
[392231414,1761271845852,-500.0,0.00042191,30]
[392231415,1761271845862,-618.1,0.00042191,30]
[392231416,1761271845871,-1072.81,0.00042191,30]
[392231417,1761271845881,-500.0,0.00042191,30]
[392231418,1761271845890,-500.0,0.00042191,30]
[392231419,1761271845900,-500.0,0.00042191,30]
[392231420,1761271845909,-300.0,0.00042191,30]
[392231421,1761271845919,-1099.63,0.00042191,30]
[392231422,1761271845928,-561.56,0.00042191,30]
[392231423,1761271845938,-500.0,0.00042191,30]
[392231424,1761271845947,-500.0,0.00042191,30]
[392231425,1761271845962,-500.0,0.00042191,30]
[392231426,1761271845971,-152.70474957,0.00042191,30]
[392231427,1761271845981,-500.0,0.00042191,30]
[392231428,1761271845990,-653.3,0.00042191,30]
[392231429,1761271846001,-500.0,0.00042191,30]
[392231430,1761271846010,-500.0,0.00042191,30]
[392231431,1761271846020,-622.84,0.00042191,30]
[392231432,1761271846030,-500.0,0.00042191,30]
[392231433,1761271846039,-500.0,0.00042191,30]
[392231434,1761271846048,-500.0,0.00042191,30]
[392231435,1761271846057,-500.0,0.00042191,30]
[392231436,1761271846067,-500.0,0.00042191,30]
[392231437,1761271846076,-1019.47,0.00042191,30]
[392231438,1761271846085,-500.0,0.00042191,30]
[392231439,1761271846094,-500.0,0.00042191,30]
[392231440,1761271846103,-1154.68,0.00042191,30]
[392231441,1761271846112,-1155.43,0.00042191,30]
[392231442,1761271846121,-500.0,0.00042191,30]
[392231443,1761271846130,-742.27,0.00042191,30]
[392231444,1761271846140,-881.73,0.00042191,30]
[392231445,1761271846149,-500.0,0.00042191,30]
[392231446,1761271846158,-500.0,0.00042191,30]
[392231447,1761271846167,-560.93,0.00042191,30]
[392231448,1761271846176,-446.89867776,0.00042191,30]
[392231450,1761271846186,-588.28,0.00042191,30]
[392231452,1761271846195,-500.0,0.00042191,30]
[392231454,1761271846204,-500.0,0.00042191,30]
[392231456,1761271846214,-534.7585403,0.00042191,30]
[392231458,1761271846223,-500.0,0.00042191,30]
[392231460,1761271846232,-500.0,0.00042191,30]
[392231462,1761271846241,-500.0,0.00042191,30]
[392231464,1761271846250,-500.0,0.00042191,30]
[392231466,1761271846259,-500.0,0.00042191,30]
[392231468,1761271846272,-500.0,0.00042191,30]
[392231470,1761271846281,-500.0,0.00042191,30]
[392231472,1761271846290,-500.0,0.00042191,30]
[392231474,1761271846300,-1170.11,0.00042191,30]
[392231476,1761271846310,-500.0,0.00042191,30]
[392231477,1761271846319,-500.0,0.00042191,30]
[392231478,1761271846328,-500.0,0.00042191,30]
[392231479,1761271846337,-500.0,0.00042191,30]
[392231480,1761271846346,-500.0,0.00042191,30]
[392231481,1761271846355,-500.0,0.00042191,30]
[392231482,1761271846365,-500.0,0.00042191,30]
[392231483,1761271846373,-500.0,0.00042191,30]
[392231484,1761271846382,-500.0,0.00042191,30]
[392231485,1761271846394,-1281.44,0.00042191,30]
[392231486,1761271846403,-109.28242988,0.00042191,30]
[392231487,1761271846416,-390.71757012,0.00042191,30]
[392231488,1761271846425,-1149.85,0.00042191,30]
[392231489,1761271846433,-500.0,0.00042191,30]
[392231490,1761271846442,-721.29,0.00042191,30]
[392231491,1761271846451,-500.0,0.00042191,30]
[392231492,1761271846460,-500.0,0.00042191,30]
[392231493,1761271846469,-500.0,0.00042191,30]
[392231494,1761271846478,-949.68,0.00042191,30]
[392231495,1761271846486,-500.0,0.00042191,30]
[392231496,1761271846495,-1095.76,0.00042191,30]
[392231497,1761271846504,-752.06,0.00042191,30]
[392231498,1761271846514,-500.0,0.00042191,30]
[392231499,1761271846522,-1008.3,0.00042191,30]
[392231500,1761271846531,-896.07,0.00042191,30]
[392231501,1761271846539,-526.38,0.00042191,30]
[392231502,1761271846549,-500.0,0.00042191,30]
[392231503,1761271846558,-500.0,0.00042191,30]
[392231504,1761271846568,-500.0,0.00042191,30]
[392231505,1761271846577,-500.0,0.00042191,30]
[392231506,1761271846586,-500.0,0.00042191,30]
[392231507,1761271846595,-500.0,0.00042191,30]
[392231508,1761271846603,-500.0,0.00042191,30]
[392231509,1761271846612,-643.72,0.00042191,30]
[392231510,1761271846621,-500.0,0.00042191,30]
[392231511,1761271846630,-1180.71,0.00042191,30]
[392231512,1761271846639,-500.0,0.00042191,30]
[392231513,1761271846648,-500.0,0.00042191,30]
[392231514,1761271846657,-1096.38,0.00042191,30]
[392231515,1761271846666,-500.0,0.00042191,30]
[392231516,1761271846675,-715.37,0.00042191,30]
[392231517,1761271846685,-500.0,0.00042191,30]
[392231518,1761271846695,-855.05,0.00042191,30]
[392231519,1761271846705,-500.0,0.00042191,30]
[392231521,1761271846716,-1905.27,0.00042191,30]
[392231523,1761271846725,-500.0,0.00042191,30]
[392231524,1761271846734,-500.0,0.00042191,30]
[392231526,1761271846744,-514.64,0.00042191,30]
[392231528,1761271846753,-500.0,0.00042191,30]
[392231530,1761271846762,-1125.38,0.00042191,30]
[392231532,1761271846771,-500.0,0.00042191,30]
[392231533,1761271846780,-500.0,0.00042191,30]
[392231535,1761271846789,-931.76,0.00042191,30]
[392231536,1761271846798,-542.54,0.00042191,30]
[392231537,1761271846808,-500.0,0.00042191,30]
[392231538,1761271846818,-614.31507014,0.00042191,30]
[392231539,1761271846830,-323.54492986,0.00042191,30]
[392231540,1761271846839,-1385.84,0.00042191,30]
[392231541,1761271846848,-939.34,0.00042191,30]
[392231542,1761271846858,-500.0,0.00042191,30]
[392231543,1761271846867,-500.0,0.00042191,30]
[392231544,1761271846876,-1058.11,0.00042191,30]
[392231545,1761271846886,-500.0,0.00042191,30]
[392231547,1761271846895,-925.75,0.00042191,30]
[392231549,1761271846903,-600.22085979,0.00042191,30]
[392231551,1761271846914,-500.0,0.00042191,30]
[392231553,1761271846923,-500.0,0.00042191,30]
[392231555,1761271846931,-500.0,0.00042191,30]
[392231557,1761271846941,-858.12,0.00042191,30]
[392231559,1761271846950,-500.0,0.00042191,30]
[392231560,1761271846959,-501.43,0.00042191,30]
[392231561,1761271846968,-593.15,0.00042191,30]
[392231562,1761271846978,-749.63,0.00042191,30]
[392231563,1761271846987,-362.17469647,0.00042191,30]
[392231564,1761271846995,-500.0,0.00042191,30]
[392231565,1761271847005,-699.35,0.00042191,30]
[392231566,1761271847014,-184.21943069,0.00042191,30]
[392231567,1761271847023,-687.22,0.00042191,30]
[392231568,1761271847032,-500.0,0.00042191,30]
[392231569,1761271847042,-500.0,0.00042191,30]
[392231570,1761271847051,-1346.88,0.00042191,30]
[392231571,1761271847062,-926.82,0.00042191,30]
[392231572,1761271847071,-614.81,0.00042191,30]
[392231573,1761271847080,-500.0,0.00042191,30]
[392231574,1761271847091,-500.0,0.00042191,30]
[392231575,1761271847100,-500.0,0.00042191,30]
[392231576,1761271847110,-632.5,0.00042191,30]
[392231577,1761271847120,-500.0,0.00042191,30]
[392231578,1761271847131,-500.0,0.00042191,30]
[392231579,1761271847143,-500.0,0.00042191,30]
[392231580,1761271847153,-868.42,0.00042191,30]
[392231581,1761271847163,-987.29,0.00042191,30]
[392231582,1761271847172,-500.0,0.00042191,30]
[392231583,1761271847182,-500.0,0.00042191,30]
[392231584,1761271847191,-500.0,0.00042191,30]
[392231585,1761271847200,-973.02,0.00042191,30]
[392231586,1761271847211,-500.0,0.00042191,30]
[392231587,1761271847221,-1130.39,0.00042191,30]
[392231588,1761271847231,-630.06,0.00042191,30]
[392231589,1761271847242,-500.0,0.00042191,30]
[392231590,1761271847251,-500.0,0.00042191,30]
[392231591,1761271847260,-500.0,0.00042191,30]
[392231592,1761271847269,-500.0,0.00042191,30]
[392231593,1761271847278,-546.92,0.00042191,30]
[392231594,1761271847287,-1145.04,0.00042191,30]
[392231595,1761271847296,-500.0,0.00042191,30]
[392231596,1761271847305,-500.0,0.00042191,30]
[392231597,1761271847314,-500.0,0.00042191,30]
[392231598,1761271847323,-500.0,0.00042191,30]
[392231599,1761271847331,-512.3,0.00042191,30]
[392231600,1761271847340,-500.0,0.00042191,30]
[392231601,1761271847348,-500.0,0.00042191,30]
[392231602,1761271847358,-500.0,0.00042191,30]
[392231603,1761271847367,-926.49,0.00042191,30]
[392231604,1761271847376,-655.27,0.00042191,30]
[392231605,1761271847386,-1354.98,0.00042191,30]
[392231606,1761271847395,-500.0,0.00042191,30]
[392231607,1761271847404,-500.0,0.00042191,30]
[392231608,1761271847412,-500.0,0.00042191,30]
[392231609,1761271847421,-500.0,0.00042191,30]
[392231610,1761271847430,-10368.9258848,0.00042215,3]
[392231611,1761271847439,-500.0,0.00042225,30]
[392231612,1761271847449,-500.0,0.00042225,30]
[392231613,1761271847459,-500.0,0.00042225,30]
[392231614,1761271847471,-327.44329505,0.00042225,30]
[392231615,1761271847551,212.40303,0.00036689,120]
[392231616,1761271849938,-750.34978988,0.00034198,2]
[392231617,1761271849953,-485.27021012,0.00034198,2]
[392231618,1761271849967,-249.26485963,0.00037113,15]
[392231619,1761271849977,-500.0,0.00037113,15]
[392231620,1761271849986,-557.6122854,0.00037113,15]
[392231621,1761271849996,-125.58661295,0.00041095,30]
[392231622,1761271850009,-986.61338705,0.00041095,30]
[392231623,1761271850019,-1112.2,0.00041369,30]
[392231624,1761271850028,-232.17946017,0.00041642,2]
[392231625,1761271850040,-1112.2,0.00041643,30]
[392231626,1761271850049,-1112.2,0.00041917,30]
[392231627,1761271850059,-500.0,0.00041951,30]
[392231628,1761271850068,-426.18733968,0.00042191,30]
[392231629,1761271850083,-686.01266032,0.00042191,30]
[392231630,1761271850093,-172.55670495,0.00042225,30]
[392231631,1761271850102,-500.0,0.00042225,30]
[392231632,1761271850112,-500.0,0.00042225,30]
[392231633,1761271850121,-500.0,0.00042225,30]
[392231634,1761271850130,-500.0,0.00042225,30]
[392231635,1761271850139,-501.51860144,0.00042225,30]
[392231636,1761271850148,-500.0,0.00042225,30]
[392231637,1761271850157,-500.0,0.00042225,30]
[392231638,1761271850167,-881.6,0.00042225,30]
[392231639,1761271850176,-500.0,0.00042225,30]
[392231640,1761271850185,-500.0,0.00042225,30]
[392231641,1761271850195,-500.0,0.00042225,30]
[392231642,1761271850204,-1227.22,0.00042225,30]
[392231643,1761271850215,-607.68,0.00042225,30]
[392231644,1761271850225,-677.08,0.00042225,30]
[392231645,1761271850235,-500.0,0.00042225,30]
[392231646,1761271850244,-698.12,0.00042225,30]
[392231647,1761271850254,-500.0,0.00042225,30]
[392231648,1761271850265,-500.0,0.00042225,30]
[392231649,1761271850275,-500.0,0.00042225,30]
[392231650,1761271850285,-634.59,0.00042225,30]
[392231651,1761271850295,-500.0,0.00042225,30]
[392231652,1761271850305,-704.5,0.00042225,30]
[392231653,1761271850314,-613.78,0.00042225,30]
[392231654,1761271850324,-688.2,0.00042225,30]
[392231655,1761271850334,-591.54,0.00042225,30]
[392231656,1761271850345,-1164.66,0.00042225,30]
[392231657,1761271850355,-500.0,0.00042225,30]
[392231658,1761271850365,-500.0,0.00042225,30]
[392231659,1761271850375,-500.0,0.00042226,30]
[392231660,1761271850386,-500.0,0.00042226,30]
[392231661,1761271850395,-500.0,0.00042226,30]
[392231662,1761271850405,-500.0,0.00042226,30]
[392231663,1761271850415,-1332.18944899,0.00042243,15]
[392231664,1761271850425,-153.81474565,0.00042356,60]
[392231665,1761271850435,-159.43671561,0.00042356,60]
[392231666,1761271850446,-1188.0,0.0004239,7]
[392231667,1761271850456,-12768.4906784,0.0004239,3]
[392231668,1761271850466,-5184.46294238,0.00042454,3]
[392231669,1761271850476,-38305.4720354,0.00042455,3]
[392231670,1761271850487,-36291.2405967,0.00042455,3]
[392231671,1761271850496,-1332.18944899,0.00042456,15]
[392231672,1761271850506,-840.02,0.00042464,30]
[392231673,1761271850516,-500.0,0.00042464,30]
[392231674,1761271850525,-500.0,0.00042464,30]
[392231675,1761271850535,-548.7,0.00042464,30]
[392231676,1761271850544,-500.0,0.00042464,30]
[392231677,1761271850553,-500.0,0.00042464,30]
[392231678,1761271850563,-500.0,0.00042464,30]
[392231679,1761271850572,-500.0,0.00042464,30]
[392231680,1761271850582,-500.0,0.00042464,30]
[392231681,1761271850592,-500.0,0.00042464,30]
[392231682,1761271850601,-500.0,0.00042464,30]
[392231683,1761271850611,-500.0,0.00042464,30]
[392231684,1761271850619,-500.0,0.00042464,30]
[392231685,1761271850628,-500.0,0.00042464,30]
[392231686,1761271850638,-500.0,0.00042464,30]
[392231687,1761271850647,-500.0,0.00042464,30]
[392231688,1761271850657,-698.27,0.00042464,30]
[392231689,1761271850666,-500.0,0.00042464,30]
[392231690,1761271850676,-500.0,0.00042464,30]
[392231691,1761271850688,-500.0,0.00042464,30]
[392231692,1761271850698,-500.0,0.00042464,30]
[392231693,1761271850709,-500.0,0.00042464,30]
[392231694,1761271850719,-500.0,0.00042464,30]
[392231695,1761271850728,-998.06,0.00042464,30]
[392231696,1761271850737,-500.0,0.00042464,30]
[392231697,1761271850746,-621.69,0.00042464,30]
[392231698,1761271850755,-500.0,0.00042464,30]
[392231699,1761271850764,-500.0,0.00042464,30]
[392231700,1761271850775,-500.0,0.00042464,30]
[392231701,1761271850784,-500.0,0.00042464,30]
[392231702,1761271850794,-431.4122792,0.00042464,30]
[392231703,1761271850804,-254.30083336,0.00042464,30]
[392231704,1761271850813,-431.744794,0.00042464,30]
[392231705,1761271850823,-514.48,0.00042464,30]
[392231706,1761271850833,-354.51676523,0.00042464,30]
[392231707,1761271850842,-930.49,0.00042464,30]
[392231708,1761271850851,-828.93,0.00042464,30]
[392231709,1761271850860,-500.0,0.00042464,30]
[392231710,1761271850869,-967.18,0.00042464,30]
[392231711,1761271850877,-223.45382435,0.00042464,2]
[392231712,1761271850885,-500.0,0.00042464,30]
[392231713,1761271850894,-500.0,0.00042464,30]
[392231714,1761271850904,-500.0,0.00042464,30]
[392231715,1761271850914,-500.0,0.00042464,30]
[392231716,1761271850923,-1210.29,0.00042464,30]
[392231717,1761271850932,-1168.93,0.00042464,30]
[392231718,1761271850942,-500.0,0.00042464,30]
[392231719,1761271850952,-514.84,0.00042465,30]
[392231720,1761271850962,-549.08,0.00042465,30]
[392231721,1761271850972,-500.0,0.00042465,30]
[392231722,1761271850981,-500.0,0.00042465,30]
[392231723,1761271850991,-500.0,0.00042465,30]
[392231724,1761271851000,-618.1,0.00042465,30]
[392231725,1761271851010,-281.02124243,0.00042465,30]
[392231726,1761271851023,-791.78875757,0.00042465,30]
[392231727,1761271851033,-500.0,0.00042465,30]
[392231728,1761271851044,-500.0,0.00042465,30]